bitfinex/quotes_SOLUSD_20250508
["timestamp","ask_amount","ask_price","bid_price","bid_amount"]
[1746670270810,136.6,148.95,148.91,17.83913947]
[1746670274445,136.6,148.95,148.91,11.1237024]
[1746670274738,147.7237024,148.95,148.91,11.1237024]
[1746670275334,136.6,148.95,148.91,11.1237024]
[1746670275514,147.7237024,148.95,148.91,11.1237024]
[1746670275718,154.43739402,148.95,148.91,11.1237024]
[1746670276926,154.43739402,148.95,148.91,17.8391283]
[1746670277742,150.42861537,148.95,148.91,7.11492375]
[1746670280534,143.31369162,148.95,148.91,7.11492375]
[1746670281032,143.31369162,148.95,148.91,13.8302531]
[1746670281033,136.6,148.95,148.91,13.8302531]
[1746670281546,136.6,148.95,148.92,7.11492375]
[1746670282626,136.6,148.95,148.91,13.8302531]
[1746670286556,143.31374311,148.95,148.91,7.11492375]
[1746670287858,136.6,148.95,148.91,13.83033363]
[1746670288156,143.71492375,148.95,148.91,13.83033363]
[1746670290457,136.6,148.95,148.91,13.83033363]
[1746670290756,150.42859534,148.95,148.91,7.11492375]
[1746670292170,150.42859534,148.95,148.89,32.7162328]
[1746670292340,150.42859534,148.95,148.9,7.25708532]
[1746670292636,150.42859534,148.95,148.91,7.11492375]
[1746670293283,143.71492375,148.95,148.91,13.83038312]
[1746670293433,143.31370372,148.95,148.91,7.11492375]
[1746670298659,150.42862747,148.95,148.91,7.11492375]
[1746670298958,143.31370372,148.95,148.91,7.11492375]
[1746670299150,150.42862747,148.95,148.91,7.11492375]
[1746670299351,143.31370372,148.95,148.91,7.11492375]
[1746670300160,136.6,148.95,148.92,7.11492375]
[1746670300844,136.6,148.95,148.91,13.8303574]
[1746670301647,143.31370194,148.95,148.91,7.11492375]
[1746670301852,143.31370194,148.95,148.87,18.64964886]
[1746670301853,7.11492375,148.92,148.87,18.64964886]
[1746670302042,7.11492375,148.89,148.84,7.11492375]
[1746670302452,7.11492375,148.89,148.85,26.14216157]
[1746670303359,7.11492375,148.89,148.85,32.86033115]
[1746670303764,11.12668606,148.89,148.85,32.86033115]
[1746670305068,11.12668606,148.9,148.86,11.12668606]
[1746670306571,11.12668606,148.91,148.86,11.12668606]
[1746670307766,17.8422551,148.91,148.87,11.12668606]
[1746670307981,11.12668606,148.9,148.86,11.12668606]
[1746670309376,11.12668606,148.9,148.86,17.84429519]
[1746670310551,11.12668606,148.91,148.86,17.84429519]
[1746670311772,17.84225191,148.91,148.86,17.84429519]
[1746670315863,17.84225191,148.91,148.86,11.12668606]
[1746670316176,17.84225191,148.91,148.86,17.8442981]
[1746670316986,17.84225191,148.91,148.87,11.12668606]
[1746670317974,17.84225191,148.91,148.86,17.8442981]
[1746670318390,17.84225191,148.91,148.87,11.12668606]
[1746670322071,143.31497347,148.93,148.89,11.12668606]
[1746670322273,154.44165953,148.93,148.89,11.12668606]
[1746670323072,147.72668606,148.93,148.89,17.84286895]
[1746670323786,143.71702214,148.93,148.89,13.83320503]
[1746670325587,7.11702214,148.92,148.86,18.64964886]
[1746670325791,7.11702214,148.9,148.85,33.11702214]
[1746670326090,7.11702214,148.92,148.87,7.11702214]
[1746670326287,7.11702214,148.92,148.85,26.0]
[1746670326288,143.31466855,148.93,148.86,7.11702214]
[1746670326490,7.11702214,148.91,148.85,26.0]
[1746670326675,7.11702214,148.91,148.86,7.11702214]
[1746670327389,13.8328419,148.91,148.86,7.11702214]
[1746670327585,6.71581976,148.91,148.87,7.11702214]
[1746670327995,6.71581976,148.91,148.86,7.11702214]
[1746670328791,7.11702214,148.91,148.86,7.11702214]
[1746670329387,6.71501477,148.92,148.86,7.11702214]
[1746670329686,7.11702214,148.91,148.86,13.8347373]
[1746670330684,13.83265476,148.91,148.86,13.8347373]
[1746670330987,136.6,148.93,148.88,7.11702214]
[1746670331190,136.6,148.93,148.89,7.11702214]
[1746670331689,150.43168607,148.93,148.88,7.11702214]
[1746670332390,7.11702214,148.92,148.87,7.11702214]
[1746670332587,13.8325227,148.91,148.86,39.8345685]
[1746670332890,6.71550056,148.91,148.87,7.11702214]
[1746670336873,7.11702214,148.91,148.87,7.11702214]
[1746670337078,7.11702214,148.91,148.86,39.8345685]
[1746670339194,7.11702214,148.91,148.86,32.71754636]
[1746670339494,13.83255013,148.91,148.86,39.8345685]
[1746670341890,6.71552799,148.91,148.87,7.11702214]
[1746670342112,136.6,148.93,148.9,33.11702214]
[1746670342267,143.31333431,148.96,148.92,7.11702214]
[1746670342471,136.6,148.96,148.93,7.11702214]
[1746670342685,136.6,148.96,148.92,7.11702214]
[1746670342972,150.43030065,148.96,148.92,7.11702214]
[1746670343172,7.11702214,148.95,148.9,33.11702214]
[1746670343380,7.11702214,148.95,148.91,7.11702214]
[1746670344102,150.43030065,148.96,148.91,13.83241843]
[1746670344798,136.6,148.96,148.92,7.11702214]
[1746670346008,136.6,148.96,148.92,13.8319719]
[1746670347303,136.6,148.96,148.93,7.11702214]
[1746670347803,143.71702214,148.96,148.92,13.8319719]
[1746670349496,150.43035678,148.96,148.91,0.14216157]
[1746670349694,7.11702214,148.95,148.91,7.25918371]
[1746670350695,7.11702214,148.94,148.9,26.0]
[1746670351012,7.11702214,148.93,148.9,0.14216157]
[1746670352080,7.11702214,148.93,148.89,7.11702214]
[1746670352286,7.11702214,148.91,148.88,26.0]
[1746670353104,7.11702214,148.9,148.86,7.11702214]
[1746670353517,7.11702214,148.91,148.86,7.11702214]
[1746670353677,11.12349309,148.91,148.86,17.98322731]
[1746670354293,11.12349309,148.92,148.88,11.12349309]
[1746670354496,147.72349309,148.93,148.89,11.12349309]
[1746670354704,136.6,148.93,148.89,11.12349309]
[1746670356096,136.6,148.93,148.9,6.71591672]
[1746670358419,147.72349309,148.93,148.9,6.71591672]
[1746670359792,11.12349309,148.92,148.89,6.71636778]
[1746670364511,136.6,148.93,148.89,11.12349309]
[1746670364716,147.72349309,148.93,148.89,11.12349309]
[1746670365527,1.5767,148.95,148.91,11.12349309]
[1746670365700,12.70019309,148.95,148.91,11.12349309]
[1746670366193,12.70019309,148.95,148.9,11.26565466]
[1746670366389,11.12349309,148.94,148.9,11.26565466]
[1746670366598,11.12349309,148.91,148.88,26.0]
[1746670367186,11.12349309,148.92,148.88,26.0]
[1746670368810,17.8386094,148.92,148.88,26.0]
[1746670369317,11.12349309,148.92,148.88,26.0]
[1746670369516,11.12349309,148.9,148.85,0.14216157]
[1746670369695,11.12349309,148.89,148.85,11.26565466]
[1746670369896,11.12349309,148.9,148.86,11.12349309]
[1746670370225,136.6,148.92,148.88,11.12349309]
[1746670371024,136.6,148.92,148.89,6.71636778]
[1746670371319,11.12349309,148.93,148.89,6.71636778]
[1746670372900,11.12349309,148.93,148.88,17.8401623]
[1746670373419,11.12349309,148.93,148.89,11.12349309]
[1746670373597,17.83806005,148.93,148.88,17.8401623]
[1746670374321,11.12349309,148.92,148.88,11.12349309]
[1746670374628,17.83862024,148.92,148.88,11.12349309]
[1746670374809,11.12349309,148.91,148.87,17.9827774]
[1746670375721,11.12349309,148.92,148.87,17.9827774]
[1746670376201,11.12349309,148.91,148.87,11.12349309]
[1746670377705,11.12349309,148.91,148.86,17.84104031]
[1746670378130,6.7153762,148.92,148.87,11.12349309]
[1746670378321,6.71425496,148.94,148.89,11.12349309]
[1746670378504,11.12349309,148.93,148.89,11.12349309]
[1746670378820,11.12349309,148.92,148.88,11.12349309]
[1746670379523,11.12349309,148.92,148.88,17.84024431]
[1746670381126,11.12349309,148.92,148.88,37.12349309]
[1746670381622,11.12349309,148.92,148.88,43.84027693]
[1746670382124,17.83819462,148.93,148.88,43.84027693]
[1746670382427,11.12349309,148.93,148.89,11.12349309]
[1746670382637,36.6,148.95,148.92,11.12349309]
[1746670382809,11.12349309,148.96,148.92,11.12349309]
[1746670383806,11.12349309,148.97,148.92,17.83831104]
[1746670384013,36.6,148.98,148.94,11.12349309]
[1746670384226,36.6,148.98,148.95,11.12349309]
[1746670385334,36.6,148.98,148.96,11.12349309]
[1746670386137,36.6,148.98,148.95,17.83715539]
[1746670387439,43.3106674,149.02,148.96,11.12349309]
[1746670387615,11.12349309,149.0,148.96,11.12349309]
[1746670389336,11.12349309,149.0,148.96,17.83662212]
[1746670390943,6.71112954,149.01,148.96,17.83662212]
[1746670391143,11.12349309,149.0,148.96,17.83662212]
[1746670392840,43.31058475,149.02,148.96,17.83662212]
[1746670393047,11.12349309,149.01,148.97,11.12349309]
[1746670394544,11.12349309,149.0,148.96,17.83662212]
[1746670395740,11.12349309,149.01,148.97,11.12349309]
[1746670396138,17.83456136,149.01,148.97,11.12349309]
[1746670397539,43.31068094,149.02,148.97,11.12349309]
[1746670397742,43.31068094,149.02,148.99,0.14216157]
[1746670397743,36.6,149.02,148.99,0.14216157]
[1746670397935,11.12349309,149.04,149.0,11.12349309]
[1746670398139,11.12349309,149.03,148.99,11.26565466]
[1746670399147,36.6,149.06,148.99,11.26565466]
[1746670399339,11.12349309,149.03,148.99,0.14216157]
[1746670399748,17.83366874,149.03,148.99,0.14216157]
[1746670399941,6.71017565,149.03,148.99,11.26565466]
[1746670400147,11.12349309,149.04,149.0,11.12349309]
[1746670400329,17.83320102,149.04,149.0,11.12349309]
[1746670401427,36.6,149.06,149.01,11.26565466]
[1746670401742,43.30887643,149.06,149.02,11.12349309]
[1746670401943,54.43236952,149.06,149.02,11.26565466]
[1746670402130,54.43236952,149.06,149.02,0.14216157]
[1746670404153,43.30887643,149.06,149.02,0.14216157]
[1746670404351,54.43236952,149.06,149.02,0.14216157]
[1746670404561,11.12349309,149.05,149.02,0.14216157]
[1746670405433,17.8327929,149.05,149.02,0.14216157]
[1746670405634,17.8327929,149.05,149.01,0.14216157]
[1746670406143,11.12349309,149.04,148.99,19.48287877]
[1746670406347,11.12349309,149.03,149.0,0.14216157]
[1746670406729,11.12349309,149.01,148.97,32.71261221]
[1746670406928,11.12349309,149.0,148.97,26.0]
[1746670408242,6.71023676,149.03,148.97,32.71257872]
[1746670408739,11.12349309,149.01,148.97,43.83607181]
[1746670410558,11.12349309,149.02,148.98,11.26565466]
[1746670412056,11.12349309,149.02,148.98,17.97759765]
[1746670413755,11.12349309,149.03,148.98,17.97759765]
[1746670415161,11.12349309,149.02,148.98,17.97759765]
[1746670417056,11.12349309,149.02,148.97,26.0]
[1746670417057,11.12349309,148.99,148.97,26.0]
[1746670417635,11.12349309,148.99,148.94,34.62964886]
[1746670417636,11.12349309,148.99,148.94,52.46686975]
[1746670417836,11.12349309,148.97,148.94,22.6937278]
[1746670418043,11.12349309,148.97,148.94,48.6937278]
[1746670418246,11.12349309,148.97,148.94,32.7137278]
[1746670418653,11.12349309,148.97,148.94,26.0]
[1746670418858,8.0801,149.01,148.94,26.0]
[1746670418859,11.12349309,148.96,148.94,26.0]
[1746670419970,6.71201742,148.99,148.94,32.71401243]
[1746670420143,11.12349309,148.98,148.94,32.71401243]
[1746670422350,11.12349309,148.98,148.94,43.83750552]
[1746670422772,6.71201742,148.99,148.94,43.83750552]
[1746670422975,11.12349309,148.98,148.94,43.83750552]
[1746670423570,11.12349309,148.98,148.94,32.71401243]
[1746670423746,11.12349309,148.97,148.94,32.71401243]
[1746670424074,6.71201742,148.99,148.94,32.71401243]
[1746670424266,11.12349309,148.98,148.94,32.71401243]
[1746670424448,11.12349309,148.98,148.94,43.83750552]
[1746670425176,11.12349309,148.98,148.94,32.71401243]
[1746670425406,11.12349309,148.97,148.94,32.71401243]
[1746670425965,11.12349309,148.98,148.94,32.71401243]
[1746670427374,11.12349309,148.98,148.94,26.0]
[1746670427669,11.12349309,148.98,148.94,32.7140871]
[1746670430393,6.71203339,148.99,148.94,43.83758019]
[1746670430394,11.12349309,148.99,148.94,43.83758019]
[1746670431182,11.12349309,148.98,148.94,43.83758019]
[1746670431384,11.12349309,148.98,148.94,26.0]
[1746670432094,11.12349309,148.98,148.94,32.71408079]
[1746670432564,11.12349309,148.98,148.94,43.83757388]
[1746670434301,36.6,149.0,148.95,11.26565466]
[1746670434481,47.72349309,149.0,148.96,11.12349309]
[1746670434965,11.12349309,148.99,148.95,11.26565466]
[1746670435879,11.12349309,148.99,148.95,0.14216157]
[1746670436463,11.12349309,148.97,148.94,26.0]
[1746670438007,11.12349309,148.98,148.94,26.0]
[1746670439181,11.12349309,148.98,148.94,37.12349309]
[1746670439376,11.12349309,148.98,148.94,43.8375313]
[1746670439596,6.71194159,148.99,148.94,43.8375313]
[1746670439772,11.12349309,148.98,148.94,43.8375313]
[1746670440987,17.83587471,148.98,148.94,37.12349309]
[1746670441995,11.12349309,148.98,148.94,43.83757951]
[1746670442599,36.6,149.0,148.95,11.12349309]
[1746670442783,47.72349309,149.0,148.95,11.12349309]
[1746670442967,47.72349309,149.0,148.95,17.83704325]
[1746670443299,47.72349309,149.0,148.96,11.12349309]
[1746670443600,11.12349309,148.99,148.95,0.14216157]
[1746670443896,11.12349309,148.98,148.95,0.14216157]
[1746670444091,11.12349309,148.97,148.94,26.0]
[1746670444276,11.12349309,148.98,148.94,26.0]
[1746670444893,17.83580436,148.98,148.94,26.0]
[1746670445197,11.12349309,148.97,148.94,26.0]
[1746670446378,11.12349309,148.96,148.94,26.0]
[1746670449005,6.71231127,148.98,148.94,26.0]
[1746670449201,6.71204028,148.99,148.94,32.71397259]
[1746670449505,11.12349309,148.98,148.94,32.71397259]
[1746670452702,47.72349309,149.0,148.95,11.12349309]
[1746670454110,47.72349309,149.0,148.95,17.8367306]
[1746670455303,11.12349309,148.98,148.94,32.71401191]
[1746670456305,11.12349309,148.98,148.94,43.837505]
[1746670458402,11.12349309,148.98,148.94,32.71401191]
[1746670458705,11.12349309,148.97,148.94,26.0]
[1746670459603,11.12349309,148.97,148.94,32.71403884]
[1746670459985,11.12349309,148.98,148.94,32.71403884]
[1746670462593,43.31158858,149.0,148.94,43.83753193]
[1746670462794,47.72349309,149.0,148.95,11.12349309]
[1746670463704,43.71055744,149.0,148.95,7.25271901]
[1746670465308,43.71055744,149.0,148.95,13.96606842]
[1746670465521,36.6,149.0,148.95,13.96606842]
[1746670465805,36.6,149.0,148.96,11.10887515]
[1746670466100,47.70887515,149.0,148.96,11.10887515]
[1746670466493,47.70887515,149.0,148.95,17.96438613]
[1746670467615,36.6,149.0,148.95,17.96438613]
[1746670467814,47.70887515,149.0,148.95,17.96438613]
[1746670468791,11.10887515,148.99,148.95,17.96438613]
[1746670469708,36.6,149.0,148.96,11.10887515]
[1746670469910,36.6,149.0,148.98,11.10887515]
[1746670470107,13.05011233,149.03,148.98,11.10887515]
[1746670470307,24.15898748,149.03,148.98,11.10887515]
[1746670472017,11.10887515,149.02,148.97,17.82124245]
[1746670473201,17.81940524,149.02,148.97,17.82124245]
[1746670475323,11.10887515,149.02,148.97,17.82124245]
[1746670476023,17.81948272,149.02,148.97,17.82124245]
[1746670476402,11.10887515,149.0,148.94,44.64964886]
[1746670476609,11.10887515,148.99,148.94,55.75852401]
[1746670476918,11.10887515,148.99,148.95,0.14216157]
[1746670477829,11.10887515,149.0,148.95,17.96455638]
[1746670478220,11.10887515,148.99,148.95,17.96455638]
[1746670479121,11.10887515,149.0,148.95,17.96455638]
[1746670480323,17.82036562,149.0,148.95,17.96455638]
[1746670487121,17.82036562,149.0,148.95,17.82239481]
[1746670487339,11.10887515,148.99,148.95,6.71351966]
[1746670487617,17.82036562,149.0,148.95,17.82239481]
[1746670487815,13.82234493,149.0,148.96,7.11085446]
[1746670489524,7.11085446,149.0,148.96,13.82403527]
[1746670491828,7.11085446,149.0,148.96,6.71318081]
[1746670492029,7.11085446,148.99,148.94,39.82454886]
[1746670492233,36.6,149.02,148.95,7.25301603]
[1746670492540,43.71085446,149.02,148.98,7.11085446]
[1746670492702,43.71085446,149.02,148.97,7.11085446]
[1746670493126,43.71085446,149.02,148.97,13.82324877]
[1746670493327,7.11085446,149.01,148.97,13.82324877]
[1746670493621,36.6,149.02,148.99,7.11085446]
[1746670494221,36.6,149.02,149.0,7.11085446]
[1746670495637,36.6,149.02,149.0,13.82210382]
[1746670495927,36.6,149.02,149.0,7.11085446]
[1746670496111,36.6,149.02,148.99,13.82256015]
[1746670497030,36.6,149.02,148.99,7.11085446]
[1746670499020,13.82093196,149.03,148.99,7.11085446]
[1746670499742,7.11085446,149.02,148.98,7.25301603]
[1746670500516,7.11085446,149.02,148.97,7.11085446]
[1746670501230,13.82093196,149.03,148.98,7.11085446]
[1746670501845,13.82093196,149.03,148.99,7.11085446]
[1746670502207,43.30971867,149.04,148.99,7.11085446]
[1746670502435,15.44836827,149.05,149.01,7.11085446]
[1746670502635,13.8197242,149.06,149.02,7.11085446]
[1746670503035,7.11085446,149.06,149.02,7.11085446]
[1746670503223,13.81962081,149.06,149.01,7.11085446]
[1746670503543,7.11085446,149.06,149.02,7.11085446]
[1746670503719,7.11085446,149.06,149.01,7.11085446]
[1746670503923,7.11085446,149.06,149.02,6.71050865]
[1746670504245,36.6,149.07,149.02,13.82136311]
[1746670504437,12.93187722,149.08,149.04,7.11085446]
[1746670505540,12.93187722,149.08,149.04,13.82009721]
[1746670505745,12.93187722,149.08,149.04,17.8060148]
[1746670505926,12.93187722,149.08,149.05,11.09677205]
[1746670506247,12.93187722,149.08,149.06,11.09677205]
[1746670508045,12.93187722,149.08,149.05,17.80584588]
[1746670510844,12.93187722,149.08,149.07,55.74642091]
[1746670511134,12.93187722,149.08,149.07,55.88858248]
[1746670512242,12.93187722,149.08,149.07,105.88858248]
[1746670512657,12.93187722,149.08,149.07,62.59684034]
[1746670513130,12.93187722,149.08,149.05,43.80585092]
[1746670513854,12.93187722,149.08,149.07,11.09677205]
[1746670514037,12.93187722,149.08,149.06,11.09677205]
[1746670514229,12.93187722,149.08,149.07,11.09677205]
[1746670514424,12.93187722,149.08,149.05,32.70907887]
[1746670514653,12.93187722,149.08,149.06,11.09677205]
[1746670516241,12.93187722,149.08,149.05,26.0]
[1746670516434,19.63972114,149.08,149.05,37.09677205]
[1746670516762,19.63972114,149.08,149.05,26.0]
[1746670516937,12.93187722,149.08,149.05,26.0]
[1746670517145,12.93187722,149.08,149.05,37.09677205]
[1746670517354,19.63972506,149.08,149.05,26.0]
[1746670517549,19.63972506,149.08,149.04,11.09677205]
[1746670518159,12.93187722,149.08,149.04,11.09677205]
[1746670518931,12.93187722,149.08,149.04,17.80598655]
[1746670519127,11.09677205,149.07,149.03,32.70998081]
[1746670519340,11.09677205,149.05,149.01,59.74735782]
[1746670519679,11.09677205,149.04,149.0,11.09677205]
[1746670519969,11.09677205,149.03,148.99,6.71176733]
[1746670522254,11.09677205,149.02,148.98,32.71213924]
[1746670523176,11.09677205,149.01,148.97,17.80942945]
[1746670523541,11.09677205,149.02,148.97,17.80942945]
[1746670525650,17.80729612,149.02,148.97,17.80942945]
[1746670525975,11.09677205,149.03,148.98,11.09677205]
[1746670526473,11.09677205,149.03,148.99,6.71185985]
[1746670527789,11.09677205,149.03,148.99,17.8086319]
[1746670528392,11.09677205,149.03,148.99,6.71185985]
[1746670529054,17.80696755,149.03,148.98,17.80899164]
[1746670529258,11.09677205,149.01,148.97,17.80936571]
[1746670529559,11.09677205,149.02,148.97,17.80936571]
[1746670530391,17.80749858,149.02,148.97,17.80936571]
[1746670530797,11.09677205,149.0,148.96,37.09677205]
[1746670531091,11.09677205,149.01,148.96,43.80997332]
[1746670531475,6.71072653,149.02,148.97,11.09677205]
[1746670531787,17.80749858,149.02,148.98,11.09677205]
[1746670532102,11.09677205,149.02,148.98,11.09677205]
[1746670532597,17.8073009,149.02,148.97,17.80942317]
[1746670533080,11.09677205,149.02,148.98,11.09677205]
[1746670533274,6.7102315,149.03,148.99,11.09677205]
[1746670533275,11.09677205,149.03,148.99,11.09677205]
[1746670533473,36.6,149.04,149.0,11.09677205]
[1746670533679,36.6,149.04,149.01,11.09677205]
[1746670535201,36.6,149.04,148.97,32.71265112]
[1746670535202,47.69677205,149.04,149.0,11.09677205]
[1746670535371,47.69677205,149.04,148.99,17.80821241]
[1746670535572,11.09677205,149.03,148.99,17.80821241]
[1746670538023,11.09677205,149.03,148.99,11.09677205]
[1746670538202,17.80692428,149.03,148.99,11.09677205]
[1746670538373,17.80692428,149.03,148.98,17.80890156]
[1746670539100,17.80692428,149.03,148.99,11.09677205]
[1746670539804,36.6,149.04,148.99,17.80856645]
[1746670539976,47.69677205,149.04,149.0,11.09677205]
[1746670542614,36.6,149.04,149.0,17.80806671]
[1746670543111,1.6543,149.06,149.01,11.09677205]
[1746670543283,1.6543,149.06,149.03,11.09677205]
[1746670544311,36.6,149.07,149.04,11.09677205]
[1746670544814,43.30830493,149.07,149.04,11.09677205]
[1746670545016,54.40507698,149.07,149.02,6.71043107]
[1746670545212,54.40507698,149.07,149.03,11.09677205]
[1746670545571,11.09677205,149.04,148.98,18.64964886]
[1746670545711,36.6,149.06,148.98,11.09677205]
[1746670545712,11.09677205,149.03,148.98,11.09677205]
[1746670546217,11.09677205,149.03,148.98,17.80903145]
[1746670546383,17.80688426,149.03,148.99,11.09677205]
[1746670548733,6.709158,149.05,149.0,11.09677205]
[1746670548903,43.30889008,149.06,149.02,11.09677205]
[1746670549086,43.30889008,149.06,149.03,11.09677205]
[1746670549310,36.6,149.06,149.03,11.09677205]
[1746670549513,36.6,149.06,149.0,18.64964886]
[1746670549711,36.6,149.06,149.02,11.09677205]
[1746670549901,47.69677205,149.06,149.02,11.09677205]
[1746670550100,24.02864927,149.08,149.04,11.09677205]
[1746670550411,12.93187722,149.08,149.05,11.09677205]
[1746670552197,12.93187722,149.08,149.06,11.09677205]
[1746670552416,12.93187722,149.08,149.07,11.09677205]
[1746670552623,12.93187722,149.08,149.06,11.09677205]
[1746670553698,12.93187722,149.08,149.07,11.09677205]
[1746670555496,12.93187722,149.08,149.07,36.59684034]
[1746670557009,12.93187722,149.08,149.07,25.50006829]
[1746670557201,12.93187722,149.08,149.07,36.59684034]
[1746670558308,12.93187722,149.08,149.07,86.59684034]
[1746670558897,12.93187722,149.08,149.07,62.59684034]
[1746670561229,12.93187722,149.08,149.07,37.09677205]
[1746670561522,12.93187722,149.08,149.07,26.0]
[1746670561744,12.93187722,149.08,149.07,11.09677205]
[1746670562130,12.93187722,149.08,149.07,17.94719148]
[1746670563845,12.93187722,149.08,149.07,36.59684034]
[1746670564017,12.93187722,149.08,149.07,92.96734034]
[1746670568242,12.93187722,149.08,149.07,113.13734034]
[1746670568429,12.93187722,149.08,149.07,92.96734034]
[1746670570031,12.93187722,149.08,149.07,62.59684034]
[1746670572237,12.93187722,149.08,149.07,36.59684034]
[1746670572440,12.93187722,149.08,149.07,86.59684034]
[1746670575373,36.6,149.22,149.11,44.64964886]
[1746670575670,36.6,149.28,149.18,44.64964886]
[1746670575881,36.6,149.27,149.23,11.09677205]
[1746670576056,36.6,149.27,149.25,11.09677205]
[1746670576458,36.6,149.27,149.24,11.09677205]
[1746670576658,36.6,149.27,149.25,11.09677205]
[1746670576851,36.6,149.27,149.24,11.09677205]
[1746670577260,14.36700255,149.34,149.26,11.09677205]
[1746670577461,11.09677205,149.3,149.26,11.09677205]
[1746670577670,11.09677205,149.3,149.24,26.0]
[1746670577864,17.70660984,149.3,149.25,17.70660984]
[1746670578277,36.6,149.33,149.24,26.0]
[1746670578466,17.70660984,149.29,149.25,17.70660984]
[1746670579075,17.70660984,149.29,149.24,43.70660984]
[1746670579284,43.29702652,149.32,149.24,26.0]
[1746670579462,36.6,149.31,149.24,43.70660984]
[1746670579660,17.70660984,149.29,149.24,43.70660984]
[1746670580866,24.40510562,149.29,149.25,17.70660984]
[1746670581074,6.69849578,149.29,149.25,17.70660984]
[1746670581459,24.40510562,149.29,149.25,17.70660984]
[1746670581883,6.69849578,149.29,149.25,17.70660984]
[1746670582181,24.40510562,149.29,149.25,17.70660984]
[1746670582355,36.6,149.31,149.24,17.70660984]
[1746670582356,17.70660984,149.28,149.24,17.70660984]
[1746670582557,17.70660984,149.28,149.23,17.70660984]
[1746670583280,23.44302429,149.3,149.25,17.70660984]
[1746670583482,17.70660984,149.29,149.25,17.70660984]
[1746670584387,23.44302429,149.3,149.25,17.70660984]
[1746670584693,6.698821,149.28,149.25,17.70660984]
[1746670585575,6.698821,149.28,149.24,17.70660984]
[1746670586096,17.70660984,149.29,149.24,17.70660984]
[1746670586602,6.69792364,149.3,149.25,17.70660984]
[1746670586782,24.40453348,149.3,149.26,17.70660984]
[1746670586983,17.70660984,149.29,149.25,17.70660984]
[1746670587188,6.69792364,149.3,149.25,17.70660984]
[1746670587501,24.40453348,149.3,149.25,17.70660984]
[1746670587703,24.40453348,149.3,149.26,17.70660984]
[1746670588308,36.6,149.31,149.27,17.70660984]
[1746670588473,61.00422542,149.31,149.27,17.70660984]
[1746670588669,17.70660984,149.3,149.26,17.70660984]
[1746670588874,43.29761558,149.31,149.25,17.70660984]
[1746670588875,17.70660984,149.29,149.25,17.70660984]
[1746670589101,17.70660984,149.28,149.22,41.92]
[1746670589297,60.0413032,149.31,149.24,17.70660984]
[1746670589479,54.30660984,149.3,149.25,17.70660984]
[1746670589777,54.30660984,149.3,149.26,17.70660984]
[1746670589974,7.6706,149.34,149.29,17.70660984]
[1746670590182,17.70660984,149.33,149.29,17.70660984]
[1746670590479,17.70660984,149.3,149.24,6.7005922]
[1746670590694,17.70660984,149.29,149.24,24.40720204]
[1746670590894,17.70660984,149.28,149.23,25.49282631]
[1746670591202,36.6,149.32,149.25,17.70660984]
[1746670591410,17.70660984,149.3,149.25,17.70660984]
[1746670591706,17.70660984,149.29,149.24,17.70660984]
[1746670591929,17.70660984,149.28,149.23,17.70660984]
[1746670592103,17.70660984,149.28,149.22,26.0]
[1746670592104,17.70660984,149.26,149.22,26.0]
[1746670592272,1.599,149.27,149.23,17.70660984]
[1746670592478,1.599,149.27,149.24,17.70660984]
[1746670592689,1.599,149.27,149.23,17.70660984]
[1746670593101,1.599,149.27,149.22,32.70143291]
[1746670593383,1.599,149.27,149.24,17.70660984]
[1746670593805,1.599,149.27,149.24,24.40719643]
[1746670594904,1.599,149.27,149.24,6.70058659]
[1746670595591,43.29807951,149.3,149.24,24.40719643]
[1746670595793,61.00468935,149.3,149.25,17.70660984]
[1746670595994,17.70660984,149.29,149.24,6.70058659]
[1746670596304,24.40509405,149.29,149.24,24.40719643]
[1746670596611,17.70660984,149.28,149.23,24.40755573]
[1746670596910,36.6,149.3,149.24,36.49842027]
[1746670597210,1.5779,149.31,149.24,36.49842027]
[1746670597383,1.5779,149.31,149.28,17.70660984]
[1746670597995,36.6,149.35,149.3,17.70660984]
[1746670598223,17.70660984,149.34,149.3,17.70660984]
[1746670598543,17.70660984,149.33,149.28,17.70660984]
[1746670598833,17.70660984,149.32,149.27,17.70660984]
[1746670599014,17.70660984,149.32,149.26,6.69971861]
[1746670599349,1.6212,149.33,149.3,17.70660984]
[1746670599516,1.6212,149.33,149.29,17.70660984]
[1746670599939,19.32780984,149.33,149.29,17.70660984]
[1746670600140,19.32780984,149.33,149.29,6.69832521]
[1746670600325,17.70660984,149.31,149.27,6.69926977]
[1746670600520,17.70660984,149.32,149.28,17.70660984]
[1746670600728,1.6212,149.33,149.29,17.70660984]
[1746670600915,1.6212,149.33,149.3,17.70660984]
[1746670601118,45.84817421,149.37,149.3,17.70660984]
[1746670601434,17.70660984,149.36,149.31,17.70660984]
[1746670601609,44.22697421,149.37,149.32,17.70660984]
[1746670601813,61.93358405,149.37,149.32,17.70660984]